bitfinex/quotes_ETHUSD_20250411
["timestamp","ask_amount","ask_price","bid_price","bid_amount"]
[1744379064089,1.4478051,1570.5,1570.1,0.05]
[1744379064292,0.0475271,1570.5,1570.1,0.05]
[1744379064518,0.0475271,1570.5,1570.1,6.41885]
[1744379064812,0.0475271,1570.6,1570.2,6.36847]
[1744379065027,6.36667,1570.7,1570.3,0.06367721]
[1744379065028,6.4141571,1570.7,1570.3,0.06367721]
[1744379065313,7.05566281,1570.7,1570.3,6.36789]
[1744379065515,13.42253281,1570.7,1570.3,6.36789]
[1744379065821,6.36704,1570.6,1570.3,6.36789]
[1744379066519,6.36686,1570.7,1570.3,6.36808]
[1744379066721,0.0475271,1570.9,1570.8,6.36618]
[1744379067027,7.5799371,1571.6,1571.2,6.36455]
[1744379067231,6.36091,1572.1,1571.3,1.2728]
[1744379067521,1.1694,1572.2,1571.2,11.532]
[1744379067522,6.36187,1571.9,1571.5,6.36326]
[1744379067706,6.36267,1571.7,1571.3,6.36396]
[1744379067883,6.36267,1571.7,1571.2,11.532]
[1744379067884,6.36261,1571.7,1571.2,6.3642]
[1744379068085,6.36261,1571.7,1571.2,6.36454]
[1744379068086,6.4105971,1571.6,1571.2,6.36454]
[1744379068318,6.4105971,1571.6,1571.2,6.36436]
[1744379068524,6.998587,1571.8,1571.1,6.36456]
[1744379068717,6.36299,1571.6,1571.3,6.3638]
[1744379068941,0.0475271,1571.5,1571.2,12.72891]
[1744379069114,0.0475271,1571.8,1571.3,6.36396]
[1744379069324,6.36218,1571.8,1571.4,6.36372]
[1744379069651,6.36315,1571.6,1571.2,6.36431]
[1744379069955,6.3637,1571.5,1571.1,6.36486]
[1744379070252,0.0475271,1571.4,1571.1,6.36477]
[1744379070456,0.0475271,1571.5,1570.9,6.36566]
[1744379070613,6.4118671,1571.3,1570.9,6.3656]
[1744379070812,0.0475271,1571.3,1570.8,11.532]
[1744379071014,6.4114171,1571.4,1571.0,12.73038]
[1744379071243,7.68893281,1571.4,1571.0,12.73042]
[1744379071451,1.32504281,1571.4,1570.9,6.42933968]
[1744379071630,6.36459,1571.2,1570.9,6.36569]
[1744379071955,0.0475271,1571.2,1570.9,12.73127]
[1744379072154,0.0475271,1571.2,1571.0,6.36521]
[1744379072309,0.0475271,1571.4,1571.0,6.3652]
[1744379072517,0.0475271,1571.5,1571.2,6.3644]
[1744379072809,7.17086481,1571.5,1571.1,0.06364927]
[1744379073044,12.72792,1571.4,1571.0,6.36504]
[1744379073212,0.0475271,1571.3,1570.7,1.1658]
[1744379073413,7.57092,1571.1,1570.7,6.36656]
[1744379073657,0.0475271,1571.0,1570.7,6.36643]
[1744379073860,6.4130671,1571.0,1570.6,6.36691]
[1744379074028,0.0475271,1571.0,1570.5,6.43105232]
[1744379074353,0.0475271,1571.0,1570.7,12.73275]
[1744379074562,0.0475271,1571.0,1570.8,6.36589]
[1744379074710,6.36468,1571.2,1570.8,6.36617]
[1744379074917,6.36457,1571.2,1570.8,12.73208]
[1744379075213,0.0475271,1571.3,1570.8,6.36618]
[1744379075533,6.36294,1571.6,1570.9,13.099236]
[1744379075861,1.167,1571.3,1571.0,6.36524]
[1744379076162,0.0475271,1571.2,1571.0,6.36524]
[1744379076316,6.4121771,1571.2,1570.8,6.36608]
[1744379076511,6.4121771,1571.2,1570.9,6.36569]
[1744379076714,1.215,1571.6,1571.2,6.36438]
[1744379077050,6.36269,1571.7,1571.3,6.36376]
[1744379077216,6.36269,1571.7,1571.4,6.36375]
[1744379077412,0.0475271,1571.7,1571.4,12.72736]
[1744379077613,0.0475271,1571.9,1571.7,6.36243]
[1744379077809,7.00296671,1571.9,1571.5,12.72651]
[1744379078014,6.4091871,1572.0,1571.6,6.36279]
[1744379078252,0.0475271,1572.0,1571.4,6.36358]
[1744379078413,0.0475271,1572.0,1571.3,6.36411]
[1744379078614,12.7688571,1572.2,1571.8,6.36203]
[1744379078855,12.72323,1572.0,1571.6,12.72564]
[1744379079161,0.0475271,1571.9,1571.6,12.72564]
[1744379079450,0.0475271,1571.9,1571.6,6.36269]
[1744379079613,6.36102,1572.1,1571.7,6.36219]
[1744379079814,12.7697171,1572.1,1571.7,12.72454]
[1744379080029,6.4085471,1572.1,1571.7,6.36219]
[1744379080229,6.36147,1572.0,1571.7,6.36219]
[1744379080559,12.72558,1571.7,1571.3,13.96848]
[1744379080858,6.36389,1571.4,1571.1,6.36484]
[1744379081012,6.36474,1571.2,1570.8,6.36591]
[1744379081217,7.62491,1571.3,1570.9,6.36544]
[1744379081424,6.36484,1571.2,1570.8,12.73207]
[1744379081622,6.36499,1571.1,1570.8,6.36603]
[1744379081966,2.023191,1571.3,1570.6,17.56188]
[1744379081967,6.4131171,1571.0,1570.6,17.56188]
[1744379082176,6.36625,1570.8,1570.4,7.60868]
[1744379082321,6.36674,1570.7,1570.4,6.36768]
[1744379082661,6.36674,1570.7,1570.3,6.36805]
[1744379082863,6.36674,1570.7,1570.4,6.36764]
[1744379083159,7.6799771,1570.8,1570.3,6.36813]
[1744379083160,6.4146771,1570.6,1570.3,6.36813]
[1744379083518,1.32566181,1570.6,1570.2,6.03421167]
[1744379083866,6.36786,1570.4,1570.2,6.03421167]
[1744379084080,6.4153871,1570.4,1570.2,6.03421167]
[1744379084271,0.0475271,1570.4,1570.2,6.03421167]
[1744379084574,0.0475271,1570.5,1570.2,12.40264167]
[1744379084870,0.0475271,1570.6,1570.3,6.3682]
[1744379085073,6.4147671,1570.6,1570.2,12.4663485]
[1744379085273,6.4147671,1570.6,1570.3,6.36806]
[1744379085569,0.0475271,1570.6,1570.3,6.36802]
[1744379085737,6.36776,1570.5,1570.1,6.41895]
[1744379085935,6.36776,1570.5,1570.1,6.41889]
[1744379085936,12.73534,1570.5,1570.1,6.41889]
[1744379086140,12.7818571,1570.6,1570.2,6.36841]
[1744379086350,6.4145871,1570.6,1570.3,6.36808]
[1744379086545,0.0475271,1570.6,1570.3,6.36808]
[1744379086779,6.36756,1570.5,1570.2,6.36856]
[1744379087071,1.27810071,1570.6,1570.3,6.36794]
[1744379087265,7.69264781,1570.6,1570.3,6.36794]
[1744379087473,7.6324,1570.8,1570.4,6.36763]
[1744379087656,6.36702,1570.6,1570.2,6.36827]
[1744379087860,0.0475271,1570.5,1570.1,6.41899]
[1744379088183,12.73707,1570.3,1570.1,0.05]
[1744379088335,0.0475271,1570.2,1570.1,0.05]
[1744379089708,6.4161371,1570.2,1570.1,0.05]
[1744379090315,7.69458681,1570.2,1570.1,0.05]
[1744379090470,8.87688681,1570.2,1570.1,0.05]
[1744379090670,6.37066,1569.7,1569.3,6.37222]
[1744379090913,1.1823,1569.8,1569.3,0.0637117]
[1744379091114,0.0475271,1569.7,1569.5,6.37127]
[1744379091298,1.2016271,1570.1,1569.2,6.37267]
[1744379091615,6.36944,1570.0,1569.6,12.74156]
[1744379091917,1.1541,1570.1,1569.8,6.37005]
[1744379092100,1.2016271,1570.1,1569.8,12.74015]
[1744379092299,1.2016271,1570.1,1569.7,6.37048]
[1744379092472,7.5708071,1570.1,1569.7,6.37048]
[1744379092674,12.73923,1570.0,1569.6,6.37098]
[1744379092994,7.5232,1570.1,1569.7,6.37047]
[1744379093180,1.2016271,1570.1,1569.8,6.37005]
[1744379093380,1.2016271,1570.1,1569.6,6.37091]
[1744379093597,1.2016271,1570.1,1569.8,6.37002]
[1744379093778,221.275333,1570.0,1569.8,6.37002]
[1744379093975,221.275333,1570.0,1569.7,12.74109]
[1744379094180,227.645003,1570.0,1569.6,6.37095]
[1744379094517,227.645003,1570.0,1569.5,1.2068]
[1744379094518,6.4175071,1569.9,1569.5,12.7426]
[1744379094678,0.0475271,1569.9,1569.5,6.37128]
[1744379094877,6.36997,1569.9,1569.5,6.37128]
[1744379095138,12.7875971,1569.9,1569.5,6.37128]
[1744379095314,12.7875971,1569.9,1569.4,12.7437]
[1744379095315,6.37024,1569.8,1569.4,12.7437]
[1744379095616,6.36997,1569.9,1569.5,12.7425]
[1744379095804,6.4174971,1569.9,1569.5,12.7425]
[1744379095994,0.0475271,1569.9,1569.4,6.37175]
[1744379096318,6.37125,1569.6,1569.3,11.199]
[1744379096529,0.0475271,1569.6,1569.3,11.199]
[1744379096824,0.0475271,1569.6,1569.4,6.37172]
[1744379097011,7.6679471,1569.8,1569.5,6.37145]
[1744379097211,7.6679471,1569.8,1569.3,11.199]
[1744379097212,1.2974271,1569.8,1569.3,11.199]
[1744379097387,2.06422181,1569.8,1569.3,17.57119]
[1744379097728,1.2974271,1569.8,1569.4,6.37175]
[1744379098025,6.37097,1569.7,1569.3,6.37217]
[1744379098185,6.4186871,1569.6,1569.2,6.37257]
[1744379098389,0.0475271,1569.6,1569.3,6.37205]
[1744379098583,6.4187471,1569.6,1569.2,6.37258]
[1744379098810,0.0475271,1569.6,1569.1,0.11371765]
[1744379099027,6.4188471,1569.6,1569.2,6.37239]
[1744379099227,6.4181771,1569.7,1569.1,0.05]
[1744379099536,6.4181771,1569.7,1569.3,12.74405]
[1744379099738,6.4181771,1569.7,1569.4,6.37175]
[1744379100239,221.275333,1570.0,1569.1,11.39638052]
[1744379100399,221.275333,1570.0,1569.2,4.194]
[1744379100600,221.275333,1570.0,1569.7,6.37038]
[1744379100796,6.37035,1569.8,1569.4,6.37168]
[1744379101107,0.0475271,1569.9,1569.3,6.37225]
[1744379101295,6.37119,1569.6,1569.2,13.93906]
[1744379101496,7.6736171,1569.6,1569.2,6.3725]
[1744379101724,7.62609,1569.6,1569.3,6.37215]
[1744379102041,1.2549,1569.6,1569.4,6.37184]
[1744379102200,1.2549,1569.6,1569.2,6.43638676]
[1744379102201,222.530233,1570.0,1569.3,1.274465]
[1744379102405,221.275333,1570.0,1569.9,6.36983]
[1744379102939,221.275333,1570.0,1569.9,7.643816]
[1744379103156,221.275333,1570.0,1569.9,6.36983]
[1744379103312,221.275333,1570.0,1569.5,4.142]
[1744379103313,221.275333,1570.0,1569.5,1.142]
[1744379103503,221.275333,1570.0,1569.7,6.37026]
[1744379103838,221.275333,1570.0,1569.8,6.37008]
[1744379104052,221.275333,1570.0,1569.7,6.37049]
[1744379104257,221.275333,1570.0,1569.9,6.36983]
[1744379104413,221.275333,1570.0,1569.9,7.643836]
[1744379104612,221.275333,1570.0,1569.9,6.36983]
[1744379105029,221.275333,1570.0,1569.9,7.52353]
[1744379105243,221.275333,1570.0,1569.9,6.36983]
[1744379105621,1.1796,1570.6,1570.3,6.36809]
[1744379105824,1.1796,1570.6,1570.2,12.73697]
[1744379105825,7.54672,1570.6,1570.2,12.73697]
[1744379106038,7.5942471,1570.6,1570.1,6.36884]
[1744379106236,7.5942471,1570.6,1569.9,6.36983]
[1744379106237,6.36801,1570.4,1569.9,6.36971]
[1744379106417,6.36745,1570.5,1570.0,6.36925]
[1744379106613,0.0475271,1570.4,1570.0,6.36941]
[1744379106824,6.36793,1570.4,1570.0,6.36938]
[1744379107024,6.36577,1570.9,1570.1,0.06368391]
[1744379107245,6.36713,1570.6,1570.1,6.36889]
[1744379107449,6.36713,1570.6,1569.6,10.70224052]
[1744379107450,6.3678,1570.4,1569.6,10.70224052]
[1744379107693,6.37064,1569.7,1569.3,6.37213]
[1744379107815,6.37144,1569.6,1569.1,12.74595]
[1744379108018,6.37147,1569.5,1569.1,6.37295]
[1744379108352,1.2065,1569.3,1568.4,10.68738693]
[1744379108515,6.37401,1568.9,1568.5,1.1634]
[1744379108715,12.7947671,1569.0,1568.5,14.26259143]
[1744379109016,6.4204071,1569.2,1568.7,6.37454]
[1744379109241,6.37325,1569.1,1568.6,6.37503]
[1744379109450,6.37325,1569.1,1568.5,7.88733143]
[1744379109451,6.37417,1568.9,1568.5,1.51186143]
[1744379109638,6.37351,1569.0,1568.6,6.43868326]
[1744379109955,6.4202671,1569.2,1568.8,6.3741]
[1744379110160,6.37361,1569.0,1568.6,6.37503]
[1744379110366,1.2065,1569.3,1568.5,11.87011052]
[1744379110586,1.202,1569.5,1569.2,6.37249]
[1744379110866,6.4186071,1569.6,1569.2,6.37249]
[1744379111052,6.4186271,1569.6,1569.1,6.37302]
[1744379111363,12.74419,1569.4,1568.9,6.37372]
[1744379111566,0.0475271,1569.6,1569.2,12.74501]
[1744379111927,6.4185771,1569.6,1569.2,6.37249]
[1744379112226,0.0475271,1569.6,1569.2,6.43620767]
[1744379112666,0.0475271,1569.6,1569.3,6.37209]
[1744379112841,6.4184871,1569.7,1569.2,7.65341077]
[1744379113158,6.4182271,1569.7,1569.2,6.43600546]
[1744379113463,14.00365,1569.8,1569.3,6.43583756]
[1744379113622,7.63322,1569.8,1569.3,6.37212]
[1744379113828,6.4181671,1569.7,1569.3,6.37212]
[1744379114261,7.63322,1569.8,1569.3,6.37212]
[1744379114462,1.3104271,1569.8,1569.5,6.37112]
[1744379114762,0.05,1570.4,1569.7,7.60194]
[1744379114972,0.05,1570.4,1569.8,6.43391666]
[1744379115176,0.05,1570.4,1570.1,6.3689]
[1744379115334,0.05,1570.4,1570.0,6.36935]
[1744379115530,0.05,1570.4,1570.1,6.36884]
[1744379115732,0.05,1570.4,1570.3,6.3682]
[1744379115959,0.05,1570.4,1570.3,6.71708263]
[1744379116654,0.05,1570.4,1570.3,0.34888263]
[1744379116959,0.05,1570.4,1570.2,12.73692]
[1744379117373,0.05,1570.4,1570.2,6.36844]
[1744379117664,0.05,1570.4,1570.3,6.43187113]
[1744379117872,0.05,1570.4,1570.3,6.3682]
[1744379118069,0.05,1570.4,1570.1,6.36893]
[1744379118450,0.05,1570.4,1570.1,12.73778]
[1744379118652,0.05,1570.4,1570.2,6.43225672]
[1744379119352,0.05,1570.4,1570.2,7.71236739]
[1744379119549,0.05,1570.4,1570.2,7.64869067]
[1744379119753,0.05,1570.4,1570.2,12.73703]
[1744379119975,0.05,1570.4,1570.3,6.43187034]
[1744379120277,0.05,1570.4,1570.3,6.3682]
[1744379120462,0.05,1570.4,1570.1,6.36894]
[1744379120768,0.05,1570.4,1570.2,0.06367498]
[1744379120969,0.05,1570.4,1570.1,6.36886]
[1744379121175,6.36833,1570.3,1569.9,1.1701]
[1744379121374,0.05,1570.4,1570.1,6.36868]
[1744379121572,0.05,1570.4,1570.2,6.43200711]
[1744379121773,0.05,1570.4,1570.2,12.73681]
[1744379121975,0.05,1570.4,1570.3,6.43187507]
[1744379122182,0.05,1570.4,1570.3,6.3682]
[1744379122344,0.05,1570.4,1570.2,7.98693]
[1744379122543,0.05,1570.4,1570.2,14.35539]
[1744379122864,0.05,1570.4,1569.9,0.754021]
[1744379123173,0.05,1570.4,1570.3,6.3682]
[1744379123380,0.05,1570.4,1570.2,12.73686]
[1744379123567,0.05,1570.4,1570.2,6.36842]
[1744379123872,0.05,1570.4,1570.3,0.0636743]
[1744379124242,0.05,1570.4,1570.3,6.3682]
[1744379124453,0.05,1570.4,1570.3,6.43186866]
[1744379124654,0.05,1570.4,1570.1,6.36894]
[1744379124860,6.41792,1570.4,1570.0,6.36927]
[1744379125063,6.4654471,1570.4,1569.9,6.36981]
[1744379125374,6.4654471,1570.4,1570.0,6.36939]
[1744379125582,0.05,1570.4,1570.1,6.36898]
[1744379126177,0.05,1570.4,1570.1,12.73785]
[1744379126501,6.36835,1570.3,1569.8,8.00017]
[1744379126652,6.36835,1570.3,1569.7,4.33128052]
[1744379126653,6.36921,1570.1,1569.6,6.37093]
[1744379126852,6.36984,1569.9,1569.5,6.3714]
[1744379127056,6.37039,1569.8,1569.4,6.37171]
[1744379127267,6.4171171,1570.0,1569.5,6.37143]
[1744379127472,6.37047,1569.8,1569.3,7.96493]
[1744379127785,1.5891,1569.9,1569.6,6.37073]
[1744379127942,7.95901,1569.9,1569.5,6.37139]
[1744379128144,1.5891,1569.9,1569.4,6.3718]
[1744379128349,6.37107,1569.6,1569.2,6.37255]
[1744379128555,6.4185971,1569.6,1569.2,6.37255]
[1744379128751,6.4183471,1569.7,1569.3,6.37225]
[1744379128951,12.7892371,1569.7,1569.3,6.43596396]
[1744379129162,1.32645081,1569.7,1569.1,6.37297]
[1744379129363,6.37127,1569.6,1569.2,12.80886719]
[1744379129565,6.37127,1569.6,1569.2,6.43622719]
[1744379129766,18.19897,1569.9,1569.2,6.43622719]
[1744379129767,6.4178771,1569.8,1569.4,6.37164]
[1744379129971,6.37125,1569.6,1569.2,6.37262]
[1744379130153,6.37064,1569.7,1569.1,6.37297]
[1744379130360,1.5394,1569.4,1569.0,12.74676]
[1744379130584,1.5869271,1569.4,1568.8,6.37412]
[1744379130753,1.5869271,1569.4,1568.8,6.37415]
[1744379130754,6.37266,1569.3,1568.8,6.37415]
[1744379130959,0.0475271,1569.2,1568.8,6.37415]
[1744379131169,12.7931871,1569.2,1568.8,6.37415]
[1744379131374,6.37309,1569.1,1568.7,6.37464]
[1744379131579,6.37459,1568.8,1568.6,6.03421167]
[1744379131771,1.6954271,1569.0,1568.6,6.03421167]
[1744379131949,1.6479,1569.0,1568.8,6.37415]
[1744379132145,6.37272,1569.2,1568.6,6.03421167]
[1744379132350,6.37272,1569.2,1568.8,12.74825]
[1744379132583,12.74558,1569.2,1568.7,6.97803117]
[1744379132795,6.37272,1569.2,1568.8,6.37409]
[1744379133101,1.5136,1569.3,1568.9,6.37374]
[1744379133271,7.88588,1569.3,1568.8,6.37424]
[1744379133471,6.37274,1569.2,1568.8,7.37190612]
[1744379133794,6.37326,1569.1,1568.7,6.37465]
[1744379134296,0.0475271,1569.2,1568.6,6.37511]
[1744379134595,1.5136,1569.3,1569.0,6.37347]
[1744379134902,6.37294,1569.2,1568.8,6.37419]
[1744379135194,6.37353,1569.0,1568.7,0.34818698]
[1744379135369,6.37353,1569.0,1568.6,12.75004]
[1744379135570,6.4207871,1569.1,1568.7,6.37453]
[1744379135771,0.79340671,1569.2,1568.8,12.74805]
[1744379135973,1.5136,1569.3,1569.1,6.37308]
[1744379136179,0.637064,1569.6,1569.1,0.06372299]
[1744379136180,1.6221,1569.6,1569.1,0.06372299]
[1744379136378,6.37246,1569.3,1568.9,6.37387]
[1744379136572,7.99343,1569.6,1568.5,5.90198052]
[1744379136573,0.0475271,1569.2,1568.7,6.3745]
[1744379136781,6.37392,1568.9,1568.5,6.37542]
[1744379136976,6.37523,1568.6,1568.1,6.37699]
[1744379137201,6.3756,1568.5,1568.1,6.37704]
[1744379137495,6.4236171,1568.4,1568.0,6.37746]
[1744379137708,12.75138,1568.5,1568.1,6.37693]
[1744379137909,6.4236171,1568.4,1568.0,12.75469]
[1744379138092,0.0475271,1568.5,1568.2,6.37661]
[1744379138293,0.0475271,1568.6,1568.1,0.06376413]
[1744379138496,0.0475271,1568.5,1567.8,0.06376315]
[1744379138695,0.0475271,1568.5,1567.6,1.6572]
[1744379138883,6.37692,1568.2,1567.8,12.75644]
[1744379139210,6.37692,1568.2,1567.8,6.37821]
[1744379139211,6.4244471,1568.2,1567.8,6.37821]
[1744379139718,0.0475271,1568.2,1567.6,0.0637775]
[1744379140027,7.56678271,1568.6,1568.2,3.0]
[1744379140028,1.6162,1568.6,1568.2,3.0]
[1744379140313,2.3011191,1568.9,1568.5,6.37527]
[1744379140612,8.6752791,1568.9,1568.5,3.0]
[1744379140814,8.6752791,1568.9,1568.0,6.3772]
[1744379140815,2.3011191,1568.9,1568.0,6.3772]
[1744379141121,1.6637271,1568.9,1568.1,6.37714]
[1744379141317,6.37429,1568.8,1568.0,9.37754]
[1744379141619,6.37577,1568.5,1568.1,3.0]
[1744379141785,6.37577,1568.5,1567.6,4.94107944]
[1744379141786,1.515,1568.3,1567.6,6.44937944]
[1744379142109,1.515,1568.3,1567.8,6.37836]
[1744379142284,1.515,1568.3,1567.9,9.44167884]
[1744379142469,1.515,1568.3,1568.0,6.37722]
[1744379142665,1.515,1568.3,1568.0,12.75459]
[1744379142867,7.89168,1568.3,1567.9,3.0]
[1744379143103,6.4244271,1568.2,1567.9,3.0]
[1744379143274,1.515,1568.3,1568.1,6.37702]
[1744379143678,1.6778271,1568.5,1568.1,3.06376265]
[1744379143884,1.6303,1568.5,1568.2,6.37644]
[1744379144106,8.0534671,1568.5,1568.1,6.37682]
[1744379144410,6.37619,1568.4,1567.9,12.75562]
[1744379144616,6.4238971,1568.3,1567.9,6.3778]
[1744379144908,0.0475271,1568.3,1568.0,3.0]
[1744379145109,12.7997171,1568.4,1568.0,3.0]
[1744379145271,6.4235071,1568.4,1568.0,9.37754]
[1744379145708,12.7996271,1568.4,1568.0,9.37754]
[1744379145922,12.7996271,1568.4,1568.0,3.0]
[1744379146094,6.4235071,1568.4,1568.0,3.0]
[1744379146296,1.6778271,1568.5,1568.1,0.06377287]
[1744379146478,6.37634,1568.3,1568.0,3.0]
[1744379146678,0.0475271,1568.3,1567.7,3.0]
[1744379146896,0.0475271,1568.3,1567.7,3.06377521]
[1744379147097,6.37647,1568.3,1567.8,6.37812]
[1744379147304,6.4235271,1568.4,1568.0,6.37745]
[1744379147305,0.0475271,1568.2,1568.0,6.37745]
[1744379147612,0.0475271,1568.2,1567.8,6.37826]
[1744379147918,7.93756,1568.1,1567.7,6.37862]
[1744379148126,1.6079271,1568.1,1567.4,1.5695]
[1744379148276,1.6079271,1568.1,1567.5,6.37932]
[1744379148277,6.37802,1567.9,1567.5,6.37932]
[1744379148476,6.4255471,1567.9,1567.5,6.37932]
[1744379148702,6.4255471,1567.9,1567.4,6.37989]
[1744379148703,6.37841,1567.8,1567.4,6.37989]
[1744379148907,6.37803,1567.9,1567.5,6.37957]
[1744379149179,1.5569,1567.7,1567.3,6.38038]
[1744379149412,1.6044271,1567.7,1567.2,0.06379947]
[1744379149609,1.6044271,1567.7,1567.4,6.37987]
[1744379149814,1.5569,1567.7,1567.4,12.75973]
[1744379150109,7.9833671,1567.7,1567.2,9.44452947]
[1744379150322,1.6044271,1567.7,1567.4,6.37986]
[1744379150497,1.6044271,1567.7,1567.2,7.48159295]
[1744379150814,7.93606,1567.7,1567.3,12.76059]
[1744379151017,1.6044271,1567.7,1567.2,1.10093295]
[1744379151217,7.9646571,1568.0,1567.5,6.37958]
[1744379151546,7.9646571,1568.0,1567.6,6.37898]
[1744379151675,6.37797,1567.9,1567.5,0.06378516]
[1744379151874,12.75611,1567.9,1567.5,6.44319516]
[1744379152091,6.37797,1567.9,1567.5,6.37941]
[1744379152286,7.9646171,1568.0,1567.6,6.44269436]
[1744379152491,14.3424771,1568.0,1567.6,6.44269436]
[1744379152690,6.37799,1567.9,1567.6,6.44269436]
[1744379152918,6.37799,1567.9,1567.6,6.44287436]
[1744379153077,1.5395,1568.0,1567.8,6.37821]
[1744379153277,1.5395,1568.0,1567.8,6.44198616]
[1744379153680,1.5395,1568.0,1567.8,12.82020616]
[1744379153882,1.5395,1568.0,1567.7,6.37866]
[1744379154103,1.5395,1568.0,1567.7,6.37861]
[1744379154425,11.8284,1568.2,1567.9,6.37764]
[1744379154604,1.5794,1568.2,1567.9,12.75576]
[1744379154787,1.5794,1568.2,1568.0,6.37754]
[1744379154988,1.5794,1568.2,1567.9,12.75563]
[1744379155189,1.5794,1568.2,1568.0,6.37733]
[1744379155407,14.4230871,1568.4,1568.1,6.37707]
[1744379155602,6.37658,1568.3,1567.9,6.37783]
[1744379155823,6.37658,1568.3,1568.0,6.37742]
[1744379156303,1.6233,1568.4,1568.1,0.06376666]
[1744379156489,1.6233,1568.4,1568.0,6.37748]
[1744379156690,1.6233,1568.4,1567.9,6.37779]
[1744379156921,6.37674,1568.2,1567.7,5.23263918]
[1744379157108,6.37647,1568.3,1567.9,6.37795]
[1744379157421,12.75315,1568.3,1567.9,6.44157908]
[1744379157585,12.75315,1568.3,1567.9,6.37781]
[1744379157790,6.4243571,1568.2,1567.8,9.37823]
[1744379158025,6.4242671,1568.2,1567.8,9.37823]
[1744379158230,6.37732,1568.1,1567.8,15.75646]
[1744379158587,12.75463,1568.1,1567.8,6.37823]
[1744379158792,12.75464,1568.1,1567.8,6.37823]
[1744379158991,7.88587,1567.9,1567.6,3.0]
[1744379159230,7.88587,1567.9,1567.5,6.37947]
[1744379159231,6.37838,1567.8,1567.5,6.37943]
[1744379159432,14.26399,1567.9,1567.5,6.37943]
[1744379159726,6.37837,1567.8,1567.5,6.37943]
[1744379160325,7.88514,1568.2,1567.8,6.37834]
[1744379160516,6.3756,1568.5,1567.8,6.37834]
[1744379160517,0.0475271,1568.4,1568.2,6.37642]
[1744379160687,7.88384,1568.5,1568.3,0.06376058]
[1744379160887,6.37633,1568.3,1567.7,1.5326]
[1744379161105,12.75572,1568.0,1567.7,3.0]
[1744379161425,6.37859,1567.8,1567.4,7.90576]
[1744379161630,0.0475271,1568.1,1567.6,6.37917]
[1744379161830,7.88115,1568.4,1567.7,3.06376499]
[1744379162042,0.0475271,1568.3,1567.7,9.37877]
[1744379162210,1.5049,1568.4,1567.9,3.0]
[1744379162522,1.5049,1568.4,1567.5,6.72890241]
[1744379162523,6.3772,1568.1,1567.7,12.75723]
[1744379162724,0.0475271,1568.3,1568.2,6.37673]
[1744379162923,6.4216371,1568.9,1568.5,3.0]
[1744379163127,7.22204081,1568.9,1568.5,6.37548]
[1744379163422,1.5816,1569.0,1568.6,6.375]
[1744379163622,1.6291271,1569.0,1568.7,3.0]
[1744379163844,0.0475271,1569.2,1568.9,6.37389]
[1744379163993,4.75157375,1569.4,1569.1,6.37276]
[1744379164196,4.70404665,1569.4,1569.3,6.37226]
[1744379164396,4.70404665,1569.4,1569.3,10.65311973]
[1744379164643,4.70404665,1569.4,1569.3,9.37226]
[1744379164793,4.70404665,1569.4,1569.3,9.84057679]
[1744379164991,4.70404665,1569.4,1569.3,9.37226]
[1744379165194,4.70404665,1569.4,1569.3,3.0]
[1744379165698,4.70404665,1569.4,1569.3,9.37226]
[1744379166008,7.77111059,1569.8,1569.7,6.37064]
[1744379166011,6.14121059,1569.8,1569.7,6.37064]
[1744379166207,6.36889,1570.2,1569.7,9.37064]
[1744379166410,0.0475271,1570.2,1569.7,3.0]
[1744379166607,6.36974,1570.0,1569.7,3.0]
[1744379166913,1.6158,1569.8,1569.2,3.0]
[1744379167241,1.6158,1569.8,1569.4,6.37159]
[1744379167242,8.0335671,1569.8,1569.4,6.37159]
[1744379167541,1.6158,1569.8,1569.5,6.4351586]
[1744379167696,8.0338171,1569.8,1569.4,9.37182]
[1744379167892,14.4043371,1569.8,1569.4,9.37182]
[1744379168097,7.98629,1569.8,1569.4,9.37164]
[1744379168298,1.6158,1569.8,1569.5,6.37124]
[1744379168529,6.37007,1569.9,1569.5,12.74252]
[1744379168530,6.36985,1569.9,1569.5,12.74252]
[1744379168743,6.4173771,1569.9,1569.6,3.0]
[1744379169049,12.7874371,1569.9,1569.6,3.0]
[1744379169240,6.37028,1569.8,1569.4,3.0]
[1744379169412,0.0475271,1569.8,1569.5,6.37134]
[1744379169615,6.4173771,1569.9,1569.5,7.945517]
[1744379169846,0.0475271,1569.9,1569.6,12.74187]
[1744379170140,0.0475271,1569.9,1569.3,6.43595569]
[1744379170141,6.4174871,1569.9,1569.5,9.37142]
[1744379170380,6.37068,1569.7,1569.5,3.0]
[1744379170582,6.37029,1569.8,1569.5,3.06371013]
[1744379170878,9.932,1570.0,1569.3,6.3722]
[1744379170879,7.9277071,1569.7,1569.3,6.3722]
[1744379171033,6.3717,1569.5,1569.2,3.0]
[1744379171239,6.37251,1569.3,1568.9,12.74751]
[1744379171474,0.0475271,1569.4,1569.1,6.37283]
[1744379171780,6.37271,1569.2,1568.8,6.3742]
[1744379171965,0.0475271,1569.1,1568.8,6.37422]
[1744379172294,1.6306,1569.2,1568.8,0.637422]
[1744379172575,8.0475371,1569.5,1569.1,6.3729]
[1744379172780,8.0475371,1569.5,1568.9,3.0]
[1744379172988,1.6757271,1569.5,1569.2,6.37261]
[1744379173278,6.37111,1569.6,1569.2,9.37264]
[1744379173279,6.37139,1569.6,1569.2,9.37264]
[1744379173492,0.0475271,1569.5,1569.3,6.37219]
[1744379173783,1.6282,1569.8,1569.6,6.37103]
[1744379174380,1.6282,1569.8,1569.6,6.371]
[1744379174679,0.0475271,1569.9,1569.5,1.67180601]
[1744379174862,0.0475271,1570.3,1570.1,6.36873]
[1744379175062,0.05,1570.4,1570.2,6.36847]
[1744379175266,0.05,1570.4,1570.0,3.06368564]
[1744379175564,0.05,1570.4,1570.3,9.3682]